Cogmind - Beta 13 *** ADVENTURER MODE // 2024.04.11 @ 19:20:15 Player: XorOwl Result: Destroyed by D-53 Grenadier with Mini Grenade Launcher Performance ------------- Evolutions (0) 0 Regions Visited (2) 400 Robots Destroyed (18) 90 Value Destroyed (330) 330 Prototype IDs (0) 0 Alien Tech Used (0) 0 Bonus (0) 0 TOTAL SCORE: 820 Bonus ------- None Cogmind --------- Core Integrity 0/250 Matter 179/300 Energy 80/100 System Corruption 12% Temperature Cool (84) Movement Rolling (80) Location -10/Mines Parts ------- > --- POWER (1) -------- (None) > --- PROPULSION (2) --- Wheel > --- UTILITY (2) ------ (None) > --- WEAPON (2) ------- (None) > --- INVENTORY (5) ---- Sensor Array Seismic Detector Transport Network Coupler Targeting Computer Peak State ------------ > --- POWER ------------ Ion Engine > --- PROPULSION ------- Light Treads Light Treads > --- UTILITY ---------- Small Storage Unit Targeting Computer > --- WEAPON ----------- Medium Laser Light Assault Rifle > --- INVENTORY -------- Light Ion Engine Aluminum Leg Aluminum Leg Wheel Compact Wheel Small Matter Pod Beam Cannon Grenade Launcher [Rating: 7] Favorites ----------- Power Ion Engine Engine Ion Engine Propulsion Light Treads Treads Light Treads Wheel Compact Wheel Utility Small Storage Unit Device Sensor Array Storage Small Storage Unit Processor Signal Interpreter Weapon Light Assault Rifle Energy Gun Medium Laser Energy Cannon Beam Cannon Ballistic Gun Light Assault Rifle Ballistic Cannon Light Cannon Launcher Grenade Launcher Build | -11 -10 -10 ------- Run | Yrd Mat Min Slots Evolved . | . . . Power . | . . . Propulsion . | . . . Utility . | . . . Weapon . | . . . Parts Attached 22 | 6 9 7 Power 2 | 1 1 . Engine 2 | 1 1 . Core . | . . . Reactor . | . . . Propulsion 5 | 2 2 1 Treads 2 | 2 . . Leg . | . . . Wheel 3 | . 2 1 Hover . | . . . Flight . | . . . Utility 6 | 1 3 2 Device 3 | . 1 2 Storage 1 | 1 . . Processor 2 | . 2 . Hackware . | . . . Protection . | . . . Artifact . | . . . Weapon 9 | 2 3 4 Energy Gun 1 | 1 . . Energy Cannon 1 | . 1 . Ballistic Gun 4 | 1 1 2 Ballistic Cannon 1 | . . 1 Launcher 2 | . 1 1 Special Weapon . | . . . Impact Weapon . | . . . Slashing Weapon . | . . . Piercing Weapon . | . . . Special Melee Weapon . | . . . Unidentified Prototypes . | . . . Parts Lost 10 | . . 10 Power 1 | . . 1 Propulsion 2 | . . 2 Utility 2 | . . 2 Weapon 5 | . . 5 Highest Loss Streak 10 | . . 10 To Critical Strikes . | . . . Average Slot Usage (%) 90 | . 93 60 Engine 13 | . 14 7 Treads 11 | . 12 . Wheel 15 | . 15 15 Device 6 | . 6 7 Storage 7 | . 8 . Processor 7 | . 7 8 Energy Gun 10 | . 11 . Energy Cannon 3 | . 2 9 Ballistic Gun 13 | . 13 5 Naked Turns 23 | . . 23 Heaviest Build 13 | 13 13 10 Greatest Support 40 | 40 40 26 Greatest Overweight (x) 1 | . . 1 Average Overweight (x) . | . . . Largest Inventory Capacity 8 | 8 8 5 Average Capacity 6 | 7 6 5 Most Carried 8 | 6 8 5 Average Carried 6 | 3 6 4 Final Capacity 8 | 8 5 5 Final Carried 6 | 6 5 4 Class Distribution -------------------- 100% | Mutant Dominant Class ---------------- Mutant | -10/Materials Mutant | -10/Mines Resources | -11 -10 -10 ----------- Run | Yrd Mat Min Matter Collected 483 | 227 228 28 Remotely . | . . . Salvage Created 637 | . 558 79 Parts 36 | . 35 1 Haulers Intercepted 1 | . 1 . Recyclers Shooed 1 | . 1 . Parts Field Recycled . | . . . Retrieved Matter . | . . . Parts Self-Destructed . | . . . Prevented . | . . . Kills | -11 -10 -10 ------- Run | Yrd Mat Min Combat Hostiles Destroyed 21 | . 10 11 Guns 11 | . 7 4 Cannons 4 | . 2 2 AOE 6 | . 1 5 Classes Destroyed 7 | . 6 1 Worker 1 | . 1 . Hauler 1 | . 1 . Recycler 2 | . 2 . Watcher 3 | . 3 . Swarmer 5 | . 5 . Grunt 6 | . 5 1 Assembled 10 | . . 10 Best Kill Streak 6 | . 6 6 Combat Bots Only 6 | . 5 6 Max Kills in Single Turn 2 | . 1 2 Gunslinging . | . . . Exploded 2 | . 1 2 Melee . | . . . Uniques/NPCs Destroyed . | . . . Combat | -11 -10 -10 -------- Run | Yrd Mat Min Hostile Shots Fired 141 | . 75 66 Missed 44 | . 22 22 Damage Taken 952 | . 395 557 Core 262 | . 71 191 Absorbed by Shields . | . . . Ignored by Resistances 297 | . 133 164 Core Remaining (%) 100 | 100 . . Volleys Fired 79 | . 59 20 Largest 2 | . 2 2 Hottest 90 | . 90 90 Shots Fired 147 | . 110 37 Gun 113 | . 103 10 Cannon 23 | . 4 19 Launcher 11 | . 3 8 Special . | . . . Kinetic 62 | . 48 14 Thermal 74 | . 59 15 Explosive 11 | . 3 8 Electromagnetic . | . . . Robot Hit Streak 12 | . 12 5 Robot Miss Streak 3 | . 3 3 Penetration Max . | . . . Secondary Targets 1 | . 1 . Max Gunslinging Chain 1 | . 1 . Shots Hit Robots 86 | . 66 20 Core Hits 52 | . 28 24 Critical Kills . | . . . Critical Parts Destroyed . | . . . Critical Strikes 3 | . 3 . Burn 3 | . 3 . Melee Attacks . | . . . Impact . | . . . Slashing . | . . . Piercing . | . . . Sneak Attacks . | . . . Combat Hostiles . | . . . Follow-up Attacks . | . . . Damage Inflicted 1402 | . 807 595 Guns 672 | . 615 57 Cannons 268 | . 70 198 Explosions 462 | . 122 340 Melee . | . . . Ramming . | . . . Kinetic 322 | . 226 96 Thermal 618 | . 459 159 Explosive 462 | . 122 340 Electromagnetic . | . . . Impact . | . . . Slashing . | . . . Piercing . | . . . Highest Corruption 12 | . . 12 Average Corruption 10 | . . 10 Corruption Purged . | . . . Corruption Blocked . | . . . Effects 3 | . . 3 Heat Flow Errors 2 | . . 2 Energy Discharges 1 | . . 1 Overload Shots . | . . . Overflow Damage 16 | . . 16 Projectiles 5 | . . 5 Explosions 11 | . . 11 Melee . | . . . Knockbacks 1 | . . 1 Impact . | . . . Kinetic 1 | . . 1 Secondary . | . . . Self-Inflicted Damage 28 | . . 28 Shots 2 | . . 2 Rammed . | . . . Targets Rammed . | . . . Kicked . | . . . Crushed . | . . . Highest Temperature 259 | . 257 259 Average Temperature 63 | . 57 78 Received Heat Transfer 242 | . 180 62 Effects 1 | . 1 . Interference 1 | . 1 . Siege Activations . | . . . Robots Corrupted . | . . . Combat Hostiles . | . . . Parts Fried . | . . . Impact Corruptions . | . . . Robots Melted . | . . . Combat Hostiles . | . . . Parts Melted 4 | . 4 . Heat Transferred 1850 | . 1517 333 Parts Sabotaged . | . . . Parts Stolen . | . . . Parts Stripped . | . . . Power Chain Reactions . | . . . Alert | -11 -10 -10 ------- Run | Yrd Mat Min Peak Influence 241 | . 241 56 Initial 28 | . . 28 Average 66 | . 76 28 Maximum Alert Level 1 | . 1 . Low Security (%) 90 | 100 89 100 Level 1 9 | . 10 . Level 2 . | . . . Level 3 . | . . . Level 4 . | . . . Level 5 . | . . . High Security . | . . . Max Security . | . . . Squads Dispatched 2 | . 2 . Investigation 2 | . 2 . Extermination . | . . . Reinforcement . | . . . Assault . | . . . Garrison . | . . . Intercept . | . . . Searches Triggered . | . . . Construction Impeded . | . . . Haulers Reinforced . | . . . Active Scanning Responses . | . . . Cargo Convoy Interrupts . | . . . Stealth | -11 -10 -10 --------- Run | Yrd Mat Min Distress Signals 1 | . 1 . Communications Jammed . | . . . Distress Signals . | . . . Times Spotted 38 | . 23 15 Peak Tracking Total 6 | . 6 6 Tactical Retreats . | . . . Traps | -11 -10 -10 ------- Run | Yrd Mat Min Traps Triggered 1 | . 1 . Indirectly . | . . . Trap Hack Attempts . | . . . Triggered . | . . . Disarmed . | . . . Reprogrammed . | . . . Reused . | . . . Traps Extracted . | . . . Installed . | . . . Triggered . | . . . Machines | -11 -10 -10 ---------- Run | Yrd Mat Min Machines Disabled . | . . . Max in Single Turn . | . . . Machines Repaired . | . . . Machines Dismantled . | . . . Machines Sabotaged . | . . . Overloaded Fab Kills . | . . . Hacking | -11 -10 -10 --------- Run | Yrd Mat Min Machines Accessed 9 | . 9 . Terminals 8 | . 8 . Fabricators . | . . . Repair Stations . | . . . Recycling Units 1 | . 1 . Scanalyzers . | . . . Garrison Access . | . . . Total Hacks 23 | . 23 . Successful 13 | . 13 . Failed 10 | . 10 . Catastrophic . | . . . Database Lockouts . | . . . Manual 20 | . 20 . Terminals 21 | . 21 . Fabricators . | . . . Repair Stations . | . . . Recycling Units 2 | . 2 . Scanalyzers . | . . . Garrison Access . | . . . Terminal Hacks 4 | . 4 . Part Schematic 1 | . 1 . Robot Analysis 1 | . 1 . Emergency Access Points 1 | . 1 . Unreport Threat 1 | . 1 . Fabricator Hacks . | . . . Repair Station Hacks . | . . . Recycling Unit Hacks 1 | . 1 . Report Inventory 1 | . 1 . Scanalyzer . | . . . Garrison Access Hacks . | . . . Unauthorized Hacks 8 | . 8 . Terminals 8 | . 8 . Botnet 8 | . 8 . Fabricators . | . . . Repair Stations . | . . . Recycling Units . | . . . Scanalyzers . | . . . Garrison Access . | . . . Data Cores Recovered . | . . . Used . | . . . Hacking Detections 7 | . 7 . Full Trace Events 1 | . 1 . Feedback Events . | . . . Feedback Blocked . | . . . Robot Schematics Acquired . | . . . Robots Built . | . . . Authchips . | . . . Time . | . . . Total Robot Build Rating . | . . . Part Schematics Acquired 1 | . 1 . Parts Built . | . . . Authchips . | . . . Time . | . . . Total Part Build Rating . | . . . Parts Repaired . | . . . Time . | . . . Parts Recycled . | . . . Recycled Matter . | . . . Retrieved Matter . | . . . Retrieved Components . | . . . Parts Scanalyzed . | . . . Part Schematics Acquired . | . . . Parts Damaged . | . . . Bothacking | -11 -10 -10 ------------ Run | Yrd Mat Min Used RIF Installer . | . . . Robots Hacked . | . . . Non-combat . | . . . Combat . | . . . Robot Hacks Applied . | . . . Relay Couplers Released . | . . . Fabnet Peak Effective % . | . . . Robots Rewired . | . . . Allies Hacked . | . . . Hacks Repelled . | . . . Allies | -11 -10 -10 -------- Run | Yrd Mat Min Total Allies . | . . . Largest Group . | . . . Highest-Rated Group . | . . . Highest-Rated Ally . | . . . Total Orders . | . . . Ally Attacks . | . . . Total Damage . | . . . Kills . | . . . Allies Corrupted . | . . . Allies Melted . | . . . Intel | -11 -10 -10 ------- Run | Yrd Mat Min Robot Analysis Total 1 | . 1 . Derelict Logs Recovered . | . . . Drone Launches . | . . . Drone Recoveries . | . . . Exploration | -11 -10 -10 ------------- Run | Yrd Mat Min Turns Passed 1327 | 85 1122 120 Spaces Moved 978 | 46 853 79 Core 49 | 2 . 47 Treads 281 | 44 237 . Legs . | . . . Wheels 648 | . 616 32 Hover . | . . . Flight . | . . . Fastest Speed 50 | 50 90 50 Average Speed 108 | 155 109 68 Slowest Speed 160 | 160 160 100 Overloaded Moves . | . . . Propulsion Burnouts . | . . . Robots Hopped . | . . . Cave-ins Triggered . | . . . Exploration Rate (%) 39 | 5 97 17 Regions Visited 2 Branch Regions 1 Pre-discovered Areas . | . . . Known Exits Taken 1 | . 1 . Unknown Exits Taken 1 | 1 . . Scrap Searched . | . . . Spaces Dug . | . . . Terrain Destroyed 85 | . 29 56 Melee . | . . . Projectile . | . . . AOE 85 | . 29 56 Terrain Rammed . | . . . Walls Destroyed . | . . . Machines Disabled . | . . . Actions | -11 -10 -10 --------- Run | Yrd Mat Min Total 1107 | 57 942 108 Wait 2 | . . 2 Move 976 | 45 852 79 Hop . | . . . Pick Up 18 | 6 12 . Fast Attach 10 | 6 1 3 Attach 3 | . 2 1 Detach . | . . . Swap 9 | . 6 3 Drop 10 | . 10 . Fire 79 | . 59 20 Melee . | . . . Ram . | . . . Kick . | . . . Crush . | . . . Escape Stasis . | . . . Rewire . | . . . Trap . | . . . Miscellaneous . | . . . Route ------- -11/Scrapyard -10/Materials (discovered 4 exits: *Mat x3 / *Min) -10/Mines History --------- Turn | Location | Event 21 | -11/Scrapyard | Discovered new exit (range 16) 86 | -11/Scrapyard | Entered Materials 201 | -10/Materials | Discovered new exit (range 9) 315 | -10/Materials | Build established: Mutant 398 | -10/Materials | Discovered new exit (range 12) 717 | -10/Materials | Discovered new exit (range 6) 734 | -10/Materials | Identified exit to Materials 918 | -10/Materials | Discovered exit to Materials (range 7) 1045 | -10/Materials | Identified exit to Mines 1208 | -10/Materials | Entered Mines 1209 | -10/Mines | Assembled infested the area 1212 | -10/Mines | Met a Derelict bent on vengeance 1275 | -10/Mines | Core integrity fell below 50% 1285 | -10/Mines | System corruption reached 10% 1298 | -10/Mines | Core integrity fell below 20% 1328 | -10/Mines | Destroyed by D-53 Grenadier with Mini Grenade Launcher Last Messages --------------- Lgt. Assault Rifle destroyed. Beam Cannon destroyed. System corrupted by crushing effect (+3). Acquired 8 matter. System corrupted: Heat flow error (+130). Acquired Lgt. Cannon. Acquired Lgt. Assault Rifle. Destroyed Asb. Hover Unit. as-21211 knocked back. as-21211 destroyed. as-77357 destroyed. as-30483 destroyed. Lgt. Cannon destroyed. G-34 Mercenary destroyed. Lgt. Assault Rifle destroyed. Acquired 20 matter. System corrupted: Heat flow error (+284). K-01 Serf collects debris. The unstable cave ceiling collapses. Acquired Wheel. Map ----- +----------------------------------------------------+ | ?????????????????????????????????????????????????? | | ?????????????????????????????????????????????????? | | ???????????????????######????????????????????????? | | ???????????????????? #?####???????????????????? | | ?????????????????????# ### ##??????????????????? | | ?????????????????????# ## #??????????????????? | | ???????????????????### #??????????????????? | | ?????????????????### #???????????????????? | | ?????######????### %= ##???????????????????? | | ??#### #?#### ##????????????????????? | | ?## ### #####?????????????????????? | | ?# ### # #?????????????????????????? | | ??# ##?????????????????????????? | | ?????# " ##?????????????????????????? | | ?????## %% ##????????????????????????? | | ??????## # % ##???????????????????????? | | ???????# ## % #???????????????????????? | | ??????## # # ### #??????????????????????? | | ????### ### # #?## %##??????????????????????? | | ????# ##?#####??####???????????????????????? | | ????## #####?????????????????????????????????? | | ?????### % ###???????????????????????????????? | | ???????## ##????######????????????????????? | | ???????## ##???# #????????????????????? | | ????????# ##### #????????????????????? | | ????????# # @ #????????????????????? | | ????????### # k #????????????????????? | | ??????????####### ##### #????????????????????? | | ????????????????####???# #????????????????????? | | ???????????????????????### ##????????????????????? | | ?????????????????????????? #?????????????????????? | | ?????????????????????????? #?????????????????????? | | ??????????????????????????d ?????????????????????? | | ?????????????????????????? ?????????????????????? | | ??????????????????????????% ????????????????????? | | ?????????????????????????? ????????????????????? | | ?????????????????????????? ????????????????????? | | ???????????????????????????###???????????????????? | | ?????????????????????????????????????????????????? | | ?????????????????????????????????????????????????? | | ?????????????????????????????????????????????????? | | ?????????????????????????????????????????????????? | | ?????????????????????????????????????????????????? | | ?????????????????????????????????????????????????? | | ?????????????????????????????????????????????????? | | ?????????????????????????????????????????????????? | | ?????????????????????????????????????????????????? | | ?????????????????????????????????????????????????? | | ?????????????????????????????????????????????????? | | ?????????????????????????????????????????????????? | +----------------------------------------------------+ Best States ------------- Heat Dissipation 25 Energy Generation 10 Energy Capacity 250 Matter Stores 300 Matter Capacity 300 Sight Range 16 Robot Scan Range 14 Terrain Scan Density 10 Resistance: KI 20 Resistance: TH 20 Resistance: EX 20 Resistance: EM 20 Resistance: I 20 Resistance: S 20 Resistance: P 20 Evasion (%) 50 Targeting Accuracy 5 Recoil Reduction 2 Offensive Hacking 10 Item Schematics ----------------- Sensor Array | -10/Materials | Hacked Robot Schematics ------------------ None Fabricated ------------ Nothing Alien Tech Used ----------------- None Achievements -------------- Quantum Hacking Challenges ------------ None Game ------ Seed NavigationFactoryAnalyzer Manual? 0 Play Time 00:26:58 Cumulative 50.5 hours Start 2024.04.11 @ 18:50:13 End 2024.04.11 @ 19:20:15 Sessions 1 Manual Loads 0 Difficulty Adventurer Special Mode None Game No. 21 Rogue 0 Adventurer 21 Explorer 0 Win Type - Total 0 Types 0/0/0/0/0/0/0/0/0 Lore% 19 Gallery% 37 Achievement% 32 Wizard Run 0 Options --------- Layout 1 ASCII 0 Keyboard 0 Movement Mouse Keybinds 0 Fullscreen 2 Font 24/Smallcaps Map View 50x35 Zoom Use 0% Tactical HUD 0 Map Filters NONE Filters NONE Steam 1 RUN: 533ce2d1-83f0-440a-8be6-df489d4c0368